bitfinex-derivatives/quotes_BNBF0:USTF0_20251219
["timestamp","ask_amount","ask_price","bid_price","bid_amount"]
[1766114105368,0.89451546,832.98,831.7,0.8829463]
[1766114105567,0.89451546,832.97,831.69,0.8829463]
[1766114106065,0.89451546,832.99,831.67,0.8829463]
[1766114106466,0.89451546,832.95,831.63,0.8829463]
[1766114106765,0.89451546,832.92,831.6,0.8829463]
[1766114106969,0.89451546,832.9,831.58,0.8829463]
[1766114107168,0.89451546,832.91,831.57,0.8829463]
[1766114107862,0.89451546,833.08,831.74,0.8829463]
[1766114108070,0.20896195,833.09,831.78,0.8829463]
[1766114108372,0.20896195,833.09,830.91,0.01132022]
[1766114108373,0.20896195,833.09,831.82,0.8829463]
[1766114108568,0.20896195,833.09,831.86,0.8829463]
[1766114108770,0.20896195,833.09,831.88,0.8829463]
[1766114109170,0.20896195,833.09,831.84,0.8829463]
[1766114109472,0.20896195,833.09,831.83,0.8829463]
[1766114110169,0.20896195,833.09,831.81,0.8829463]
[1766114111268,0.20896195,833.09,831.78,0.8829463]
[1766114112069,0.20896195,833.09,831.79,0.8829463]
[1766114112270,0.20896195,833.09,831.64,1.17296071]
[1766114112271,0.20896195,833.09,831.76,0.8829463]
[1766114112873,0.20896195,833.09,831.75,0.8829463]
[1766114113071,0.20896195,833.09,831.67,0.8829463]
[1766114113275,0.20896195,833.09,831.58,0.8829463]
[1766114113575,0.89451546,833.03,831.38,0.8829463]
[1766114113771,1.18788154,833.02,831.38,0.8829463]
[1766114114175,0.89451546,833.04,831.38,0.8829463]
[1766114114377,1.18768139,833.03,831.38,0.8829463]
[1766114115276,1.18768139,833.03,831.37,0.8829463]
[1766114117378,0.20896195,833.09,831.45,0.8829463]
[1766114118379,0.20896195,833.09,831.49,0.8829463]
[1766114118675,0.20896195,833.09,831.51,0.8829463]
[1766114119172,0.20896195,833.09,831.5,0.8829463]
[1766114119374,0.20896195,833.09,831.54,0.8829463]
[1766114120379,0.20896195,833.09,831.6,0.8829463]
[1766114121380,0.20896195,833.09,831.64,0.8829463]
[1766114122180,0.20896195,833.09,831.63,0.8829463]
[1766114122480,0.20896195,833.09,831.74,0.8829463]
[1766114122680,0.20896195,833.09,831.76,0.8829463]
[1766114123177,0.20896195,833.09,831.75,0.8829463]
[1766114124180,0.20896195,833.09,831.74,0.8829463]
[1766114125182,0.20896195,833.09,831.73,0.8829463]
[1766114126180,0.20896195,833.09,831.72,0.8829463]
[1766114127185,0.20896195,833.09,831.71,0.8829463]
[1766114127384,0.20896195,833.09,831.7,0.8829463]
[1766114127587,0.20896195,833.09,831.55,1.17296071]
[1766114127588,0.20896195,833.09,831.66,0.8829463]
[1766114128083,0.20896195,833.09,831.65,0.8829463]
[1766114128283,0.20896195,833.09,831.53,0.8829463]
[1766114128487,0.20896195,833.09,831.49,0.8829463]
[1766114128688,0.20896195,833.09,831.3,0.8829463]
[1766114129288,0.89451546,833.08,831.3,0.8829463]
[1766114129490,1.18587387,833.07,831.29,0.8829463]
[1766114129689,1.18587387,833.06,831.29,0.8829463]
[1766114129988,1.18587387,833.05,831.29,0.8829463]
[1766114130189,0.89451546,833.08,831.3,0.8829463]
[1766114130388,1.18595113,833.07,831.3,0.8829463]
[1766114132486,1.18595113,833.06,831.3,0.8829463]
[1766114132686,1.18595113,833.05,831.3,0.8829463]
[1766114132989,1.10347741,833.09,831.3,0.8829463]
[1766114133190,2.08057765,833.08,831.31,0.8829463]
[1766114133489,1.18606219,833.07,831.31,0.8829463]
[1766114133690,1.18606219,833.06,831.31,0.8829463]
[1766114133886,1.18606219,833.05,831.31,0.8829463]
[1766114134086,0.89451546,833.08,831.31,0.8829463]
[1766114134391,1.18619903,833.07,831.31,0.8829463]
[1766114134688,1.18619903,833.06,831.31,0.8829463]
[1766114134889,1.18619903,833.05,831.31,0.8829463]
[1766114135090,0.89451546,833.08,831.32,0.8829463]
[1766114135289,1.1862762,833.07,831.32,0.8829463]
[1766114135989,1.1862762,833.07,831.31,0.8829463]
[1766114136186,2.08079166,833.07,831.31,0.8829463]
[1766114136390,1.1862762,833.06,831.31,0.8829463]
[1766114136687,1.1862762,833.05,831.32,0.8829463]
[1766114136886,1.1862762,833.04,831.32,0.8829463]
[1766114137088,0.89451546,833.08,831.32,0.8829463]
[1766114137287,1.18649656,833.07,831.32,0.8829463]
[1766114138088,2.08101202,833.07,831.33,0.8829463]
[1766114138291,1.18649656,833.06,831.32,0.8829463]
[1766114138788,1.18263794,833.05,831.32,0.8829463]
[1766114138992,1.18263794,833.04,831.32,0.8829463]
[1766114139193,0.89451546,833.06,831.33,0.8829463]
[1766114139393,2.07730777,833.05,831.32,0.8829463]
[1766114139592,1.18279231,833.04,831.32,0.8829463]
[1766114139790,1.18280055,833.03,831.32,0.8829463]
[1766114139989,0.89451546,833.05,831.32,0.8829463]
[1766114140193,1.18280052,833.04,831.33,0.8829463]
[1766114140388,1.18280052,833.04,830.43,2.93240177]
[1766114140389,0.89451546,832.79,831.09,0.8829463]
[1766114140594,0.89451546,832.82,831.12,0.8829463]
[1766114140891,1.18326665,832.81,831.12,0.8829463]
[1766114141093,2.07778211,832.81,831.12,0.8829463]
[1766114141292,0.89451546,832.83,831.14,0.8829463]
[1766114141490,2.07810582,832.82,831.15,0.8829463]
[1766114141693,0.89451546,832.88,831.2,0.8829463]
[1766114141892,1.18354278,832.87,831.2,0.8829463]
[1766114142097,2.07805824,832.87,831.2,0.8829463]
[1766114142294,1.18354278,832.86,831.2,0.8829463]
[1766114142493,2.07805824,832.86,831.21,0.8829463]
[1766114142696,1.18354278,832.85,831.21,0.8829463]
[1766114142897,0.89451546,832.86,831.21,0.8829463]
[1766114143098,0.89451546,832.91,831.26,0.8829463]
[1766114143298,2.0788123,832.9,831.27,0.8829463]
[1766114143497,1.18429684,832.89,831.27,0.8829463]
[1766114144397,0.89451546,832.88,831.29,0.8829463]
[1766114144597,1.18429684,832.87,831.29,0.8829463]
[1766114145303,1.18429684,832.87,831.31,0.8829463]
[1766114145599,0.89451546,832.88,831.32,0.8829463]
[1766114145799,1.18517799,832.87,831.31,0.8829463]
[1766114145998,1.18517799,832.87,831.32,0.8829463]
[1766114146197,2.07969345,832.87,831.32,0.8829463]
[1766114146401,2.07969345,832.87,830.42,2.93240177]
[1766114146402,2.07969345,832.86,831.33,0.8829463]
[1766114146599,0.89451546,832.86,831.33,0.8829463]
[1766114147202,1.18571786,832.85,831.33,0.8829463]
[1766114147404,2.08023332,832.85,831.33,0.8829463]
[1766114147703,2.08032884,832.84,831.32,0.8829463]
[1766114147904,0.89451546,832.84,831.32,0.8829463]
[1766114148100,1.18598613,832.83,831.32,0.8829463]
[1766114148504,2.08050159,832.83,831.33,0.8829463]
[1766114148705,0.89451546,832.81,831.31,0.8829463]
[1766114149098,1.18626996,832.8,831.31,0.8829463]
[1766114149502,0.89451546,832.73,831.25,0.8829463]
[1766114149905,1.18639914,832.72,831.24,0.8829463]
[1766114150406,0.89451546,832.64,831.17,0.8829463]
[1766114150802,2.08118763,832.63,831.16,0.8829463]
[1766114151003,0.89451546,832.63,831.16,0.8829463]
[1766114151203,0.89451546,832.53,831.06,0.8829463]
[1766114152002,0.89451546,832.49,831.03,0.8829463]
[1766114152204,0.89451546,832.5,831.02,0.8829463]
[1766114152408,0.89451546,832.49,831.03,0.8829463]
[1766114152606,0.89451546,832.49,831.02,0.8829463]
[1766114152811,0.89451546,832.46,831.0,0.8829463]
[1766114153211,0.89451546,832.47,830.99,0.8829463]
[1766114153411,0.89451546,832.47,831.0,0.8829463]
[1766114154112,0.89451546,832.39,830.9,0.8829463]
[1766114154606,0.89451546,832.43,830.94,0.8829463]
[1766114155112,1.18674515,832.42,830.93,0.8829463]
[1766114155312,0.89451546,832.43,830.94,0.8829463]
[1766114156113,0.20896195,833.09,830.73,13.15922636]
[1766114156114,0.89451546,832.44,830.93,0.8829463]
[1766114157113,0.89451546,832.45,830.92,0.8829463]
[1766114157310,0.89451546,832.48,830.95,0.8829463]
[1766114157513,2.08063887,832.47,830.96,0.8829463]
[1766114157714,0.89451546,832.47,830.96,0.8829463]
[1766114158114,0.89451546,832.48,830.95,0.8829463]
[1766114158314,1.18598807,832.47,830.95,0.8829463]
[1766114159210,0.20896195,833.09,830.94,0.8829463]
[1766114159211,0.89451546,832.49,830.94,0.8829463]
[1766114159410,2.08036983,832.48,830.95,0.8829463]
[1766114159615,0.89451546,832.48,830.95,0.8829463]
[1766114159815,1.18585882,832.47,830.94,0.8829463]
[1766114160314,0.89451546,832.48,830.95,0.8829463]
[1766114160510,0.89451546,832.54,831.0,0.8829463]
[1766114160814,0.89451546,832.55,831.01,0.8829463]
[1766114161009,1.1857983,832.54,831.01,0.8829463]
[1766114161211,0.89451546,832.55,831.0,0.8829463]
[1766114161413,0.89451546,832.61,831.05,0.8829463]
[1766114161615,1.18556953,832.6,831.05,0.8829463]
[1766114162315,0.89451546,832.62,831.05,0.8829463]
[1766114162615,1.18539778,832.61,831.05,0.8829463]
[1766114163114,1.18539778,832.61,830.9,1.17296071]
[1766114163115,1.18539778,832.61,831.04,0.8829463]
[1766114163911,1.18539778,832.61,831.03,0.8829463]
[1766114163912,2.07991324,832.61,831.03,0.8829463]
[1766114164114,1.18539778,832.6,831.03,0.8829463]
[1766114164313,0.89451546,832.51,830.93,0.8829463]
[1766114164516,1.18539778,832.5,830.93,0.8829463]
[1766114165110,1.18539778,832.5,830.78,1.17296071]
[1766114165111,1.18539778,832.5,830.92,0.8829463]
[1766114165412,0.89451546,832.5,830.9,0.8829463]
[1766114165618,0.89451546,832.42,830.82,0.8829463]
[1766114165818,0.89451546,832.43,830.83,0.8829463]
[1766114166117,0.89451546,832.31,830.73,13.15922636]
[1766114166317,0.89451546,832.32,830.73,13.15922636]
[1766114166616,0.89451546,832.41,830.78,0.8829463]
[1766114166916,1.18447554,832.4,830.78,0.8829463]
[1766114167116,1.18447554,832.4,830.73,13.15922636]
[1766114167117,1.18447554,832.4,830.76,0.8829463]
[1766114167318,0.89451546,832.42,830.76,0.8829463]
[1766114167513,1.18412396,832.41,830.76,0.8829463]
[1766114167719,2.07863942,832.41,830.75,0.8829463]
[1766114167917,1.18412396,832.4,830.75,0.8829463]
[1766114168318,0.89451546,832.42,830.74,0.8829463]
[1766114168518,2.08037494,832.41,830.74,0.8829463]
[1766114168814,1.18585948,832.4,830.74,0.8829463]
[1766114169314,0.89451546,832.35,830.73,13.15922636]
[1766114169513,1.18585948,832.34,830.73,13.15922636]
[1766114170918,0.89451546,832.39,830.73,13.15922636]
[1766114171118,1.18565942,832.38,830.73,13.15922636]
[1766114172218,1.18580245,832.37,830.73,13.15922636]
[1766114172414,1.18580245,832.36,830.73,13.15922636]
[1766114172714,0.89451546,832.47,830.78,0.8829463]
[1766114173018,0.89451546,832.54,830.85,0.8829463]
[1766114173213,0.20896195,833.09,830.89,0.8829463]
[1766114173214,0.89451546,832.57,830.89,0.8829463]
[1766114173419,0.89451546,832.68,831.0,0.8829463]
[1766114173617,1.18545805,832.67,831.0,0.8829463]
[1766114174920,0.89451546,832.78,831.09,0.8829463]
[1766114175121,2.07988334,832.77,831.09,0.8829463]
[1766114175321,0.89451546,832.81,831.12,0.8829463]
[1766114175518,1.18536993,832.8,831.12,0.8829463]
[1766114177217,0.89451546,832.83,831.15,0.8829463]
[1766114177517,1.18542587,832.82,831.15,0.8829463]
[1766114178121,0.89451546,832.91,831.24,0.8829463]
[1766114178322,1.18531644,832.9,831.24,13.83323078]
[1766114178817,0.89451546,832.88,831.24,12.95028448]
[1766114179122,0.89451546,832.84,831.24,12.95028448]
[1766114179319,0.89451546,832.81,831.24,12.95028448]
[1766114179522,1.18531644,832.8,831.24,12.95028448]
[1766114180220,1.18581264,832.79,831.24,12.95028448]
[1766114180419,0.89451546,832.81,831.24,12.95028448]
[1766114180623,1.18581252,832.8,831.24,12.95028448]
[1766114182122,2.08032798,832.8,831.24,12.95028448]
[1766114182325,0.89451546,832.87,831.25,0.8829463]
[1766114182623,1.18628602,832.86,831.25,0.8829463]
[1766114183125,0.89451546,832.88,831.3,0.8829463]
[1766114183323,0.89451546,832.91,831.32,0.8829463]
[1766114183722,0.89451546,832.97,831.38,0.8829463]
[1766114183921,2.08118062,832.96,831.38,0.8829463]
[1766114184126,0.89451546,832.94,831.39,0.8829463]
[1766114184321,1.18715777,832.93,831.39,0.8829463]
[1766114185121,2.08167323,832.93,831.41,0.8829463]
[1766114185320,1.18715777,832.92,831.41,0.8829463]
[1766114186027,0.89451546,833.01,831.49,0.8829463]
[1766114186226,0.89451546,832.99,831.51,0.8829463]
[1766114186526,0.89451546,832.78,831.3,0.8829463]
[1766114186725,1.18760499,832.77,831.3,0.8829463]
[1766114186924,0.89451546,832.78,831.3,0.8829463]
[1766114187122,0.89451546,832.81,831.33,0.8829463]
[1766114187321,0.89451546,832.92,831.48,0.8829463]
[1766114187625,0.89451546,832.92,831.33,1.17296071]
[1766114187626,0.89451546,832.85,831.41,0.8829463]
[1766114187925,0.89451546,832.76,831.32,0.8829463]
[1766114188125,1.1929228,832.91,831.24,12.95028448]
[1766114188126,0.89451546,832.74,831.33,0.8829463]
[1766114188324,0.89451546,832.66,831.26,0.8829463]
[1766114189324,1.18961788,832.65,831.26,0.8829463]
[1766114190328,2.08413334,832.65,831.26,0.8829463]
[1766114190525,0.89451546,832.65,831.26,0.8829463]
[1766114191226,0.89451546,832.65,831.27,0.8829463]
[1766114191728,0.89451546,832.7,831.32,0.8829463]
[1766114192133,0.89451546,832.7,831.33,0.8829463]
[1766114193232,0.89451546,832.69,831.33,0.8829463]
[1766114193433,0.89451546,832.65,831.29,0.8829463]
[1766114194134,0.89451546,832.65,831.3,0.8829463]
[1766114194336,0.89451546,832.62,831.27,0.8829463]
[1766114194738,0.89451546,832.51,831.24,12.95028448]
[1766114195538,0.89451546,832.5,831.24,12.95028448]
[1766114195838,0.89451546,832.49,831.24,12.95028448]
[1766114196235,0.89451546,832.48,831.24,12.95028448]
[1766114196839,0.89451546,832.46,831.24,12.95028448]
[1766114197041,0.89451546,832.4,831.24,12.95028448]
[1766114197238,1.19070008,832.39,831.24,12.95028448]
[1766114197537,0.89451546,832.33,831.24,12.95028448]
[1766114198141,0.89451546,832.32,831.24,12.95028448]
[1766114198642,0.89451546,832.3,831.24,12.95028448]
[1766114198840,0.89451546,832.26,831.24,12.95028448]
[1766114199141,0.89451546,832.17,831.24,12.95028448]
[1766114200337,0.89451546,832.24,831.24,12.95028448]
[1766114201639,0.89451546,832.25,831.24,12.95028448]
[1766114203342,2.08568533,832.24,831.24,12.95028448]
[1766114203538,2.08568533,832.23,831.24,12.95028448]
[1766114203740,0.89451546,832.23,831.24,12.95028448]
[1766114205843,0.89451546,832.16,831.24,12.95028448]
[1766114206245,1.19119265,832.15,831.24,12.95028448]
[1766114206445,0.89451546,832.14,830.79,0.8829463]
[1766114207741,0.89451546,832.16,830.8,0.8829463]
[1766114207941,0.89451546,832.22,830.87,0.8829463]
[1766114208245,0.89451546,832.29,830.94,0.8829463]
[1766114210345,1.19121716,832.28,830.94,0.8829463]
[1766114210641,0.89451546,832.22,830.87,0.8829463]
[1766114212141,0.89451546,832.23,830.87,0.8829463]
[1766114212347,2.08562105,832.22,830.86,0.8829463]
[1766114212646,1.19109634,832.21,830.86,0.8829463]
[1766114212846,0.89451546,832.2,830.84,0.8829463]
[1766114213046,0.89451546,832.13,830.77,13.84063268]
[1766114213248,0.89451546,832.13,830.77,12.95768638]
[1766114213947,2.08552423,832.12,830.77,12.95768638]
[1766114214140,0.89451546,832.12,830.77,12.95768638]
[1766114214543,0.89451546,832.09,830.77,12.95768638]
[1766114214745,0.89451546,832.06,830.68,0.8829463]
[1766114214950,0.89451546,831.62,830.25,0.8829463]
[1766114215145,0.89451546,831.58,830.12,0.8829463]
[1766114215349,0.89451546,831.53,830.06,0.8829463]
[1766114215646,0.89451546,831.56,830.1,0.8829463]
[1766114216344,0.89451546,831.59,830.05,0.8829463]
[1766114217248,0.89451546,831.62,830.02,0.8829463]
[1766114217645,0.89451546,831.61,830.01,0.8829463]
[1766114218148,0.89451546,831.62,830.01,0.8829463]
[1766114218345,0.89451546,831.66,830.0,0.8829463]
[1766114219146,0.89451546,831.74,830.03,0.8829463]
[1766114219349,0.89451546,831.8,830.1,0.8829463]
[1766114219748,0.89451546,831.73,830.03,10.03255807]
[1766114219950,0.89451546,831.73,830.03,9.14961177]
[1766114220451,0.89451546,831.76,830.06,0.8829463]
[1766114220948,0.89451546,831.82,830.11,0.8829463]
[1766114221350,0.89451546,831.83,830.09,0.8829463]
[1766114222448,0.89451546,831.84,830.08,0.8829463]
[1766114223053,0.89451546,831.84,830.03,9.14961177]
[1766114223054,0.89451546,831.85,830.07,0.8829463]
[1766114223250,0.89451546,831.84,830.03,9.14961177]
[1766114223754,8.90417096,832.06,830.16,1.17296071]
[1766114224053,8.90417096,832.06,830.15,1.17296071]
[1766114225153,8.90417096,832.06,830.14,1.17296071]
[1766114225853,0.20934031,831.59,830.14,1.17296071]
[1766114227154,0.20934031,831.59,830.13,1.17296071]
[1766114228356,0.20934031,831.59,830.05,1.17296071]
[1766114228651,0.20934031,831.59,830.03,9.14961177]
[1766114229957,0.89103995,831.97,830.03,9.14961177]
[1766114230754,0.89103995,832.01,830.03,9.14961177]
[1766114231558,0.89103995,832.02,830.03,9.14961177]
[1766114231960,8.90417096,832.06,830.12,1.17296071]
[1766114232255,8.90417096,832.06,830.2,1.17296071]
[1766114233159,0.20932142,831.6,830.2,1.17296071]
[1766114233355,0.20932142,831.6,830.21,1.17296071]
[1766114233861,0.20932142,831.6,830.28,1.17296071]
[1766114234055,0.20932142,831.6,830.27,1.17296071]
[1766114234555,0.20932142,831.6,830.28,1.17296071]
[1766114236259,0.20932142,831.6,830.36,1.17296071]
[1766114236461,8.90417096,832.06,830.36,1.17296071]
[1766114236764,0.20929876,831.69,830.36,1.17296071]
[1766114236963,0.20929876,831.69,830.37,1.17296071]
[1766114237265,0.20929876,831.69,830.42,1.17296071]
[1766114237460,0.20929876,831.69,830.43,1.17296071]
[1766114237660,8.90417096,832.06,830.43,1.17296071]
[1766114237864,0.20928806,831.73,830.43,1.17296071]
[1766114238361,8.90417096,832.06,830.49,1.17296071]
[1766114238562,8.90417096,832.06,830.5,1.17296071]
[1766114238765,0.20926792,831.86,830.5,1.17296071]
[1766114239161,0.20926792,831.86,830.51,1.17296071]
[1766114239366,0.20926792,831.86,830.55,1.17296071]
[1766114240865,0.20926792,831.86,830.56,1.17296071]
[1766114241265,0.20926792,831.86,830.6,1.17296071]
[1766114241770,0.20926792,831.86,830.65,1.17296071]
[1766114243370,8.90417096,832.06,830.66,1.17296071]
[1766114243570,0.20925156,831.91,830.66,1.17296071]
[1766114244265,0.20925156,831.91,830.68,1.17296071]
[1766114244570,0.20925156,831.91,830.65,1.17296071]
[1766114245270,0.20925156,831.91,830.62,1.17296071]
[1766114245765,0.20925156,831.91,830.6,1.17296071]
[1766114246168,0.20925156,831.91,830.62,1.17296071]
[1766114247271,0.20925156,831.91,830.63,1.17296071]
[1766114247571,0.20925156,831.91,830.48,1.77510224]
[1766114247572,0.20925156,831.91,830.62,1.17296071]
[1766114248269,0.20925156,831.91,830.63,1.17296071]
[1766114249169,0.20925156,831.91,830.64,1.17296071]
[1766114249668,0.20925156,831.91,830.03,9.14961177]
[1766114249669,0.20925156,831.91,830.48,1.17296071]
[1766114250274,0.20925156,831.91,830.49,1.17296071]
[1766114250477,0.20925156,831.91,830.43,1.17296071]
[1766114251175,0.20925156,831.91,830.44,1.17296071]
[1766114252275,0.20925156,831.91,830.45,1.17296071]
[1766114252472,0.20925156,831.91,830.46,1.17296071]
[1766114253175,0.20925156,831.91,830.47,1.17296071]
[1766114254174,0.20925156,831.91,830.48,1.17296071]
[1766114254475,0.20925156,831.91,830.57,1.17296071]
[1766114254677,0.20925156,831.91,830.58,1.17296071]
[1766114255474,0.20925156,831.91,830.59,1.17296071]
[1766114256774,0.20925156,831.91,830.52,1.17296071]
[1766114257475,0.20925156,831.91,830.53,1.17296071]
[1766114259282,0.20925156,831.91,830.49,1.17296071]
[1766114259483,0.20925156,831.91,830.47,1.17296071]
[1766114260685,0.20925156,831.91,830.4,1.17296071]
[1766114261383,0.20925156,831.91,830.45,1.17296071]
[1766114261587,0.20925156,831.91,830.5,1.17296071]
[1766114261887,0.20925156,831.91,830.56,1.17296071]
[1766114262289,0.20925156,831.91,830.64,1.17296071]
[1766114263084,0.20925156,831.91,830.63,1.17296071]
[1766114263785,0.20925156,831.91,830.62,1.17296071]
[1766114264290,0.20925156,831.91,830.54,1.17296071]
[1766114264586,0.20925156,831.91,830.53,1.17296071]
[1766114264884,0.20925156,831.91,830.48,1.17296071]
[1766114265283,0.20925156,831.91,830.38,1.17296071]
[1766114265484,0.20925156,831.91,830.39,1.17296071]
[1766114266586,0.20925156,831.91,830.43,1.17296071]
[1766114267288,0.20925156,831.91,830.42,1.17296071]
[1766114267486,0.20925156,831.91,830.46,1.17296071]
[1766114268089,0.20925156,831.91,830.47,1.17296071]
[1766114268692,0.20925156,831.91,830.54,1.17296071]
[1766114270093,0.20925156,831.91,830.49,1.17296071]
[1766114271294,0.20925156,831.91,830.45,1.17296071]
[1766114273791,0.20925156,831.91,830.41,1.17296071]
[1766114274096,0.20925156,831.91,830.4,1.17296071]
[1766114274295,0.20925156,831.91,830.41,1.17296071]
[1766114275091,0.20925156,831.91,830.36,1.17296071]
[1766114275493,0.20925156,831.91,830.37,1.17296071]
[1766114275693,0.20925156,831.91,830.03,9.14961177]
[1766114275694,0.20925156,831.91,830.45,1.17296071]
[1766114276297,0.20925156,831.91,830.47,1.17296071]
[1766114277191,0.20925156,831.91,830.03,9.14961177]
[1766114277192,0.20925156,831.91,830.49,1.17296071]
[1766114278396,0.20925156,831.91,830.51,1.17296071]
[1766114279197,0.20925156,831.91,830.52,1.17296071]
[1766114279494,0.20925156,831.91,830.53,1.17296071]
[1766114280295,0.20925156,831.91,830.62,1.17296071]
[1766114280498,0.20925156,831.91,830.9,1.17296071]
[1766114280998,0.20925156,831.91,830.89,1.17296071]
[1766114281200,0.20925156,831.91,830.86,1.17296071]
[1766114281497,0.20925156,831.91,830.78,1.17296071]
[1766114282499,0.20925156,831.91,830.03,12.08201354]
[1766114282500,0.20925156,831.91,830.79,1.17296071]
[1766114282697,0.20925156,831.91,830.78,1.17296071]
[1766114282899,0.20925156,831.91,830.74,1.17296071]
[1766114283297,0.20925156,831.91,830.73,1.17296071]
[1766114283599,0.20925156,831.91,830.68,1.17296071]
[1766114284496,0.20925156,831.91,830.67,1.17296071]
[1766114285199,0.20925156,831.91,830.68,1.17296071]
[1766114286300,0.20925156,831.91,830.69,1.17296071]
[1766114289202,0.20925156,831.91,830.7,1.17296071]
[1766114290104,0.20925156,831.91,830.71,1.17296071]
[1766114291101,0.20925156,831.91,830.03,9.14961177]
[1766114291102,0.20925156,831.91,830.72,1.17296071]
[1766114293211,0.20925156,831.91,830.73,1.17296071]
[1766114293509,0.20925156,831.91,830.67,1.17296071]
[1766114295310,0.20925156,831.91,830.72,1.17296071]
[1766114296411,0.20925156,831.91,830.73,1.17296071]
[1766114299215,0.20925156,831.91,830.74,1.17296071]
[1766114301013,0.20925156,831.91,830.84,1.17296071]
[1766114301412,0.20925156,831.91,830.85,1.17296071]
[1766114301814,0.20925156,831.91,830.95,1.17296071]
[1766114302519,0.20925156,831.91,831.01,1.17296071]
[1766114302718,0.20925156,831.91,831.04,1.17296071]
[1766114302919,0.20925156,831.91,831.05,1.17296071]
[1766114303119,0.20925156,831.91,831.04,1.17296071]
[1766114303420,0.20925156,831.91,831.05,1.17296071]
[1766114305216,0.20925156,831.91,831.04,1.17296071]
[1766114306423,0.20925156,831.91,831.11,1.17296071]
[1766114307120,0.20925156,831.91,831.1,1.17296071]
[1766114308225,0.20925156,831.91,831.09,1.17296071]
[1766114308525,0.20925156,831.91,831.1,1.17296071]
[1766114308820,0.20925156,831.91,831.18,1.17296071]
[1766114309221,8.90417096,832.06,831.17,1.17296071]
[1766114309421,8.90417096,832.06,831.18,1.17296071]
[1766114310224,8.90417096,832.06,831.12,1.17296071]
[1766114310421,8.90417096,832.06,831.08,1.17296071]
[1766114311126,8.90417096,832.06,831.07,1.17296071]
[1766114311820,8.90417096,832.06,831.08,1.17296071]
[1766114312223,8.90417096,832.06,831.07,1.17296071]
[1766114312421,8.90417096,832.06,831.01,1.17296071]
[1766114312825,8.90417096,832.06,830.89,1.17296071]
[1766114313024,8.90417096,832.06,830.83,1.17296071]
[1766114313828,8.90417096,832.06,830.81,1.17296071]
[1766114314424,8.90417096,832.06,830.76,1.17296071]
[1766114315130,8.90417096,832.06,830.71,1.17296071]
[1766114315326,0.8983227,832.0,830.63,1.17296071]
[1766114316629,0.8983227,831.96,830.59,1.17296071]
[1766114317428,0.8983227,832.04,830.66,1.17296071]
[1766114318230,0.8983227,832.03,830.66,1.17296071]
[1766114318432,0.8983227,832.05,830.67,1.17296071]
[1766114319233,0.8983227,832.04,830.67,1.17296071]
[1766114319429,8.90417096,832.06,830.7,1.17296071]
[1766114320333,8.90417096,832.06,830.71,1.17296071]
[1766114320532,8.90417096,832.06,830.7,1.17296071]
[1766114321136,8.90417096,832.06,830.71,1.17296071]
[1766114321336,8.90417096,832.06,830.7,1.17296071]
[1766114321635,8.90417096,832.06,830.72,1.17296071]
[1766114325540,8.90417096,832.06,830.73,1.17296071]
[1766114326139,8.90417096,832.06,830.74,1.17296071]
[1766114326942,8.90417096,832.06,830.73,1.17296071]
[1766114328338,8.90417096,832.06,830.74,1.17296071]
[1766114328543,8.90417096,832.06,830.82,1.17296071]
[1766114330638,8.90417096,832.06,830.8,1.17296071]
[1766114331045,0.8983227,832.03,830.68,1.17296071]
[1766114332041,0.89737758,832.03,830.68,1.17296071]
[1766114333341,0.89737758,832.03,830.69,1.17296071]
[1766114334345,8.90417096,832.06,830.77,1.17296071]
[1766114334545,8.90417096,832.06,830.76,1.17296071]
[1766114335045,0.89737758,832.1,830.76,1.17296071]
[1766114335246,0.89737758,832.1,830.77,1.17296071]
[1766114335445,0.89737758,832.09,830.77,1.17296071]
[1766114335643,0.20919056,832.13,830.82,1.17296071]
[1766114337546,0.20919056,832.13,830.83,1.17296071]
[1766114338447,0.20919056,832.13,830.84,1.17296071]
[1766114339449,1.10656814,832.13,830.84,1.17296071]
[1766114340244,10.09240802,832.13,830.84,1.17296071]
[1766114340845,9.19503044,832.13,830.84,1.17296071]
[1766114341251,9.19503044,832.13,830.93,1.17296071]
[1766114341751,9.19503044,832.13,831.01,1.17296071]
[1766114342950,9.19503044,832.13,831.0,1.17296071]
[1766114344648,9.19503044,832.13,830.96,1.17296071]
[1766114344852,9.19503044,832.13,830.91,1.17296071]
[1766114350056,9.19503044,832.13,830.95,1.17296071]
[1766114350253,9.19503044,832.13,830.99,1.17296071]
[1766114352455,9.19503044,832.13,830.88,1.17296071]
[1766114352656,9.19503044,832.13,830.86,1.17296071]
[1766114354460,9.19503044,832.13,830.87,1.17296071]
[1766114354861,9.19503044,832.13,830.95,1.17296071]
[1766114355661,9.19503044,832.13,831.03,1.17296071]
[1766114356061,9.19503044,832.13,831.04,1.17296071]
[1766114357162,9.19503044,832.13,831.1,1.17296071]
[1766114358163,9.19503044,832.13,831.11,1.17296071]
[1766114358362,9.19503044,832.13,831.1,1.17296071]
[1766114361461,9.19503044,832.13,831.09,1.17296071]
[1766114362762,9.19503044,832.13,830.83,13.03355621]
[1766114362763,9.19503044,832.13,831.15,1.17296071]
[1766114364262,9.19503044,832.13,831.14,1.17296071]
[1766114366963,9.19503044,832.13,831.19,1.17296071]
[1766114367263,9.19503044,832.13,831.22,1.17296071]
[1766114367969,9.19503044,832.13,831.14,1.17296071]
[1766114368370,0.20919056,832.13,831.15,1.17296071]